[Event "31st Roquetas de Mar Open 2020"]
[Site "Roquetas de Mar"]
[Date "2020.01.06"]
[Round "7.5"]
[White "Sivuk, Vitaly"]
[Black "Merario Alarcon, Andres"]
[Result "1-0"]
[ECO "D35"]
[WhiteElo "2579"]
[BlackElo "2412"]
[Annotator "RC"]
[PlyCount "104"]
[EventDate "2020.01.02"]
[EventType "swiss"]
[EventCountry "ESP"]
[SourceTitle "playchess.com"]
[Source "ChessBase"]
[SourceQuality "1"]
[TimeControl "5400+30"]

1. d4 {[%emt 0:03:37]} Nf6 {[%emt 0:00:00]} 2. c4 {[%emt 0:00:39]} e6 {[%emt 0:00:02]} 3. Nc3 {[%emt 0:00:00]} d5 {[%emt 0:00:26]} 4. cxd5 {[%emt 0:00:00]} Nxd5 {[%emt 0:00:07]} 5. e4 {[%emt 0:00:08]} Nxc3 {[%emt 0:00:06]} 6. bxc3 {[%emt 0:00:05]} c5 {[%emt 0:00:08]} 7. Rb1 {[%emt 0:00:08]} Be7 {[%emt 0:00:09]} 8. Nf3 {[%emt 0:00:49]} O-O {[%emt 0:00:09]} 9. h4 {[%emt 0:00:15]} b6 {[%emt 0:03:03]} 10. h5 {[%emt 0:00:21]} cxd4 {[%emt 0:00:24]} 11. cxd4 {[%emt 0:00:08]} Bb7 {[%emt 0:00:05]} 12. Bd3 {[%emt 0:01:38]} Nc6 {[%emt 0:03:45]} 13. Bb2 {[%emt 0:03:29]} Nb4 {[%emt 0:00:23]} 14. h6 {[%emt 0:00:40]} g6 {[%emt 0:00:09]} 15. O-O {[%emt 0:06:58]} Rc8 {[%emt 0:06:47]} 16. Re1 {[%emt 0:01:20]} Nxd3 {[%emt 0:00:51]} 17. Qxd3 {[%emt 0:00:06]} Bf6 {[%emt 0:16:11]} 18. Qe3 {[%emt 0:05:48]} Re8 {[%emt 0:14:25]} 19. Rbc1 {[%emt 0:02:29]} Rxc1 {[%emt 0:10:28]} 20. Rxc1 {[%emt 0:01:23]} Qb8 {[%emt 0:01:49]} 21. Ba3 {[%emt 0:05:16]} Rc8 {[%emt 0:05:05]} 22. Rxc8+ {[%emt 0:00:23]} Qxc8 {[%emt 0:01:08]} 23. Qf4 {[%emt 0:01:18]} Qd8 {[%emt 0:02:09]} 24. g4 {[%emt 0:11:30]} Bh8 {[%emt 0:06:24]} 25. g5 {[%emt 0:19:34]} Bc6 {[%emt 0:07:51]} 26. Bd6 {[%emt 0:07:42]} f6 {[%emt 0:02:59]} 27. e5 {[%emt 0:01:37]} f5 {[%emt 0:04:27]} 28. Ne1 {[%emt 0:01:30]} Kf7 {[%emt 0:05:49]} 29. Qc1 {[%emt 0:01:33]} Qa8 {[%emt 0:03:15]} 30. Nd3 {[%emt 0:00:44]} Ke8 {[%emt 0:02:10]} 31. Nf4 {[%emt 0:01:18]} Bd7 {[%emt 0:02:08]} 32. Qc7 {[%emt 0:01:07]} Qd8 {[%emt 0:01:55]} 33. Qxd8+ {[%emt 0:01:20]} Kxd8 {[%emt 0:00:01]} 34. a3 {[%emt 0:00:42]} Bc8 {[%emt 0:00:19]} 35. f3 {[%emt 0:01:04]} Kd7 {[%emt 0:00:10]} 36. Kf2 {[%emt 0:00:07]} Ba6 {[%emt 0:00:29]} 37. Bf8 {[%emt 0:05:29]} Ke8 {[%emt 0:00:08]} 38. Bg7 {[%emt 0:00:20]} Bxg7 {[%emt 0:00:06]} 39. hxg7 {[%emt 0:00:03]} Kf7 {[%emt 0:00:07]} 40. Nxe6 {[%emt 0:00:05]} Bc4 {[%emt 0:00:48]} 41. Nc7 {[%emt 0:00:10]} Kxg7 {[%emt 0:00:10]} 42. d5 {[%emt 0:00:29]} f4 {[%emt 0:02:55]} 43. e6 {[%emt 0:00:30]} Kf8 {[%emt 0:00:25]} 44. d6 {[%emt 0:00:06]} Bxe6 {[%emt 0:00:38]} 45. Nxe6+ {[%emt 0:00:05]} Ke8 {[%emt 0:00:02]} 46. Nxf4 {[%emt 0:00:28]} Kd7 {[%emt 0:00:02]} 47. Ke3 {[%emt 0:00:13]} Kxd6 {[%emt 0:00:06]} 48. Kd4 {[%emt 0:00:02]} b5 {[%emt 0:00:30]} 49. Nd5 {[%emt 0:00:24]} Ke6 {[%emt 0:00:31]} 50. Ke4 {[%emt 0:02:48]} Kd6 {[%emt 0:00:09]} 51. Nf6 {[%emt 0:00:23]} a5 {[%emt 0:00:08]} 52. Nxh7 {[%emt 0:00:58]} a4 {[%emt 0:00:41]} 1-0

[Event "31st Roquetas de Mar Open 2020"]
[Site "Roquetas de Mar"]
[Date "2020.01.06"]
[Round "7.6"]
[White "Krysa, Leandro"]
[Black "Suarez Uriel, Adrian"]
[Result "1/2-1/2"]
[ECO "A29"]
[WhiteElo "2522"]
[BlackElo "2362"]
[Annotator "RC"]
[PlyCount "63"]
[EventDate "2020.01.02"]
[EventType "swiss"]
[EventCountry "ESP"]
[SourceTitle "playchess.com"]
[Source "ChessBase"]
[SourceQuality "1"]
[TimeControl "5400+30"]

1. c4 {[%emt 0:00:13]} Nf6 {[%emt 0:02:16]} 2. Nc3 {[%emt 0:00:11]} e5 {[%emt 0:00:08]} 3. Nf3 {[%emt 0:00:14]} Nc6 {[%emt 0:00:05]} 4. g3 {[%emt 0:00:13]} d5 {[%emt 0:00:05]} 5. cxd5 {[%emt 0:00:06]} Nxd5 {[%emt 0:00:04]} 6. Bg2 {[%emt 0:00:05]} Nb6 {[%emt 0:00:03]} 7. O-O {[%emt 0:00:13]} Be7 {[%emt 0:00:06]} 8. d3 {[%emt 0:00:08]} O-O {[%emt 0:00:09]} 9. Be3 {[%emt 0:00:14]} Be6 {[%emt 0:00:15]} 10. Rc1 {[%emt 0:00:15]} Qd7 {[%emt 0:02:45]} 11. a3 {[%emt 0:03:59]} a5 {[%emt 0:04:01]} 12. Na4 {[%emt 0:09:14]} Nxa4 {[%emt 0:17:56]} 13. Qxa4 {[%emt 0:00:15]} Rfd8 {[%emt 0:04:17]} 14. Rfe1 {[%emt 0:18:25]} Bd5 {[%emt 0:06:52]} 15. Bc5 {[%emt 0:07:06]} Bf6 {[%emt 0:06:51]} 16. Nd2 {[%emt 0:05:28]} Bg5 {[%emt 0:01:49]} 17. Be3 {[%emt 0:01:22]} Bxe3 {[%emt 0:00:48]} 18. fxe3 {[%emt 0:00:11]} Bxg2 {[%emt 0:00:32]} 19. Kxg2 {[%emt 0:00:05]} Qe6 {[%emt 0:06:48]} 20. Qb3 {[%emt 0:10:34]} Qxb3 {[%emt 0:13:56]} 21. Nxb3 {[%emt 0:00:04]} Rd5 {[%emt 0:01:28]} 22. Rc5 {[%emt 0:14:59]} Rxc5 {[%emt 0:01:50]} 23. Nxc5 {[%emt 0:00:03]} b6 {[%emt 0:05:07]} 24. Nd7 {[%emt 0:01:24]} Re8 {[%emt 0:02:38]} 25. Rc1 {[%emt 0:01:07]} Re6 {[%emt 0:00:01]} 26. b4 {[%emt 0:01:48]} axb4 {[%emt 0:00:15]} 27. axb4 {[%emt 0:00:04]} Nxb4 {[%emt 0:05:54]} 28. Rxc7 {[%emt 0:00:37]} f6 {[%emt 0:03:00]} 29. e4 {[%emt 0:04:52]} Nc6 {[%emt 0:01:05]} 30. Kf2 {[%emt 0:02:25]} Nd4 {[%emt 0:03:19]} 31. e3 {[%emt 0:07:34]} Nb5 {[%emt 0:00:13]} 32. Rb7 {[%emt 0:06:11]} 1/2-1/2

[Event "31st Roquetas de Mar Open 2020"]
[Site "Roquetas de Mar"]
[Date "2020.01.06"]
[Round "7.7"]
[White "Marin, Mihail"]
[Black "Shariyazdanov, Andrey"]
[Result "1/2-1/2"]
[ECO "A14"]
[WhiteElo "2496"]
[BlackElo "2519"]
[Annotator "RC"]
[PlyCount "99"]
[EventDate "2020.01.02"]
[EventType "swiss"]
[EventCountry "ESP"]
[SourceTitle "playchess.com"]
[Source "ChessBase"]
[SourceQuality "1"]
[TimeControl "5400+30"]

1. c4 Nf6 2. g3 e6 3. Bg2 d5 4. Nf3 Be7 5. O-O O-O 6. b3 b6 7. Bb2 Bb7 8. e3 c5 9. Nc3 Qc8 10. Qe2 Rd8 11. d3 Nc6 12. Rfd1 d4 13. exd4 Nxd4 14. Nxd4 cxd4 15. Ne4 Nxe4 16. Bxe4 a5 17. a3 Bc5 18. Bc1 Qd7 19. Bd2 Bd6 20. b4 a4 21. Rac1 Rac8 22. Rc2 e5 23. g4 Bxe4 24. Qxe4 Rc6 25. Bg5 Rdc8 26. Bh4 b5 27. c5 Bc7 28. Bg3 Rf8 29. Rf1 f6 30. f3 g6 31. Rg2 Kh8 32. f4 exf4 33. Bxf4 Re6 34. Qb7 Rc8 35. Bxc7 Rxc7 36. Qf3 Rcc6 37. Qf4 Rc8 38. h4 Qd5 39. h5 gxh5 40. gxh5 Qxh5 41. Qxd4 Rg8 42. Rxg8+ Kxg8 43. Qd8+ Kf7 44. Qd7+ Re7 45. Qf5 Qh6 46. Qd5+ Kf8 47. Qd8+ Kf7 48. Qd5+ Kf8 49. Qd8+ Kf7 50. Qd5+ 1/2-1/2

[Event "31st Roquetas de Mar Open 2020"]
[Site "Roquetas de Mar"]
[Date "2020.01.06"]
[Round "7.8"]
[White "Klekowski, Maciej"]
[Black "Mieles Palau, Daniel"]
[Result "1/2-1/2"]
[ECO "A36"]
[WhiteElo "2515"]
[BlackElo "2374"]
[Annotator "RC"]
[PlyCount "89"]
[EventDate "2020.01.02"]
[EventType "swiss"]
[EventCountry "ESP"]
[SourceTitle "playchess.com"]
[Source "ChessBase"]
[SourceQuality "1"]
[TimeControl "5400+30"]

1. c4 c5 {[%emt 0:01:45]} 2. Nc3 {[%emt 0:00:33]} Nc6 {[%emt 0:00:34]} 3. g3 {[%emt 0:00:05]} g6 {[%emt 0:00:38]} 4. Bg2 {[%emt 0:00:05]} Bg7 {[%emt 0:00:06]} 5. b3 {[%emt 0:01:10]} e6 {[%emt 0:06:39]} 6. Ba3 {[%emt 0:00:46]} d6 {[%emt 0:03:03]} 7. e3 {[%emt 0:00:09]} Nge7 {[%emt 0:01:16]} 8. Nge2 {[%emt 0:00:06]} e5 {[%emt 0:02:32]} 9. O-O {[%emt 0:03:23]} O-O {[%emt 0:00:08]} 10. d3 {[%emt 0:08:54]} b6 {[%emt 0:01:24]} 11. b4 {[%emt 0:08:43]} Bb7 {[%emt 0:03:21]} 12. Rb1 {[%emt 0:09:37]} Qd7 {[%emt 0:06:13]} 13. bxc5 {[%emt 0:01:28]} dxc5 {[%emt 0:00:36]} 14. Nd5 {[%emt 0:00:10]} Nxd5 {[%emt 0:06:07]} 15. Bxd5 {[%emt 0:00:15]} Na5 {[%emt 0:01:37]} 16. Nc3 {[%emt 0:00:58]} Kh8 {[%emt 0:09:10]} 17. Bb2 {[%emt 0:04:38]} f5 {[%emt 0:00:24]} 18. Bxb7 {[%emt 0:04:09]} Qxb7 {[%emt 0:02:31]} 19. f3 {[%emt 0:17:57]} e4 {[%emt 0:17:53]} 20. fxe4 {[%emt 0:11:09]} fxe4 {[%emt 0:00:14]} 21. Nxe4 {[%emt 0:00:35]} Bxb2 {[%emt 0:01:58]} 22. Rxb2 {[%emt 0:00:13]} Nxc4 {[%emt 0:00:06]} 23. Rbf2 {[%emt 0:01:24]} Rxf2 {[%emt 0:00:27]} 24. Rxf2 {[%emt 0:00:03]} Ne5 {[%emt 0:05:48]} 25. Nf6 {[%emt 0:09:53]} Qg7 {[%emt 0:02:37]} 26. d4 {[%emt 0:01:32]} Rd8 {[%emt 0:00:07]} 27. Qf1 {[%emt 0:01:19]} cxd4 {[%emt 0:01:06]} 28. exd4 {[%emt 0:00:03]} Nf7 {[%emt 0:01:37]} 29. Qe2 {[%emt 0:10:21]} Nd6 {[%emt 0:09:39]} 30. g4 {[%emt 0:00:47]} Nf5 {[%emt 0:02:04]} 31. Ne8 {[%emt 0:00:17]} Qe7 {[%emt 0:04:04]} 32. Rxf5 {[%emt 0:00:23]} Qxe8 {[%emt 0:00:01]} 33. Re5 {[%emt 0:00:14]} Qf7 {[%emt 0:01:27]} 34. d5 {[%emt 0:01:17]} Qf4 {[%emt 0:01:39]} 35. Kg2 {[%emt 0:00:51]} Qd4 {[%emt 0:01:13]} 36. Re8+ {[%emt 0:01:08]} Rxe8 {[%emt 0:00:22]} 37. Qxe8+ {[%emt 0:00:04]} Kg7 {[%emt 0:00:02]} 38. Qe7+ {[%emt 0:00:04]} Kg8 {[%emt 0:00:17]} 39. Qe6+ {[%emt 0:00:21]} Kg7 {[%emt 0:00:05]} 40. Qe7+ {[%emt 0:01:26]} Kg8 {[%emt 0:00:06]} 41. d6 {[%emt 0:00:21]} Qxg4+ {[%emt 0:00:53]} 42. Kf2 {[%emt 0:00:05]} Qd4+ {[%emt 0:00:09]} 43. Ke2 {[%emt 0:00:06]} Qc4+ {[%emt 0:00:08]} 44. Ke3 {[%emt 0:00:21]} Qc3+ {[%emt 0:00:42]} 45. Ke2 {[%emt 0:00:05]} 1/2-1/2

[Event "31st Roquetas de Mar Open 2020"]
[Site "Roquetas de Mar"]
[Date "2020.01.06"]
[Round "7.9"]
[White "Gines Esteo, Pedro Antonio"]
[Black "Sosa, Tomas"]
[Result "1-0"]
[ECO "A06"]
[WhiteElo "2482"]
[BlackElo "2508"]
[Annotator "RC"]
[PlyCount "85"]
[EventDate "2020.01.02"]
[EventType "swiss"]
[EventCountry "ESP"]
[SourceTitle "playchess.com"]
[Source "ChessBase"]
[SourceQuality "1"]
[TimeControl "5400+30"]

1. Nf3 {[%emt 0:11:49]} d5 {[%emt 0:00:03]} 2. g3 {[%emt 0:00:24]} Nc6 {[%emt 0:00:17]} 3. d4 {[%emt 0:10:13]} Bf5 {[%emt 0:00:30]} 4. Bg2 {[%emt 0:17:37]} Nb4 {[%emt 0:01:20]} 5. Na3 {[%emt 0:01:59]} e6 {[%emt 0:00:26]} 6. O-O {[%emt 0:03:35]} Nf6 {[%emt 0:11:35]} 7. Ne5 {[%emt 0:06:42]} Be7 {[%emt 0:06:46]} 8. c3 {[%emt 0:02:29]} Na6 {[%emt 0:00:19]} 9. Qa4+ {[%emt 0:00:22]} c6 {[%emt 0:02:34]} 10. c4 {[%emt 0:01:12]} Qb6 {[%emt 0:08:52]} 11. c5 {[%emt 0:11:06]} Qb4 {[%emt 0:05:40]} 12. Qd1 {[%emt 0:00:22]} Nb8 {[%emt 0:03:02]} 13. Nd3 {[%emt 0:01:59]} Qa5 {[%emt 0:03:50]} 14. b4 {[%emt 0:01:38]} Qd8 {[%emt 0:00:59]} 15. b5 {[%emt 0:09:49]} O-O {[%emt 0:03:26]} 16. Bf4 {[%emt 0:02:06]} a6 {[%emt 0:05:57]} 17. b6 {[%emt 0:00:18]} Nbd7 {[%emt 0:00:08]} 18. Nc2 {[%emt 0:02:15]} Re8 {[%emt 0:12:05]} 19. Ne3 {[%emt 0:05:27]} Be4 {[%emt 0:03:47]} 20. f3 {[%emt 0:00:28]} Bxd3 {[%emt 0:08:59]} 21. exd3 {[%emt 0:00:14]} e5 {[%emt 0:00:30]} 22. dxe5 {[%emt 0:01:12]} Nxe5 {[%emt 0:00:19]} 23. d4 {[%emt 0:05:50]} Ng6 {[%emt 0:06:27]} 24. Bc7 {[%emt 0:00:04]} Qd7 {[%emt 0:00:02]} 25. Qd3 {[%emt 0:00:16]} Rec8 {[%emt 0:03:01]} 26. Qf5 {[%emt 0:01:28]} Nf8 {[%emt 0:03:41]} 27. Bh3 {[%emt 0:00:22]} Qe8 {[%emt 0:04:23]} 28. Rae1 {[%emt 0:01:04]} Ne6 {[%emt 0:00:11]} 29. Qd3 {[%emt 0:01:09]} Nxc7 {[%emt 0:01:16]} 30. Bxc8 {[%emt 0:00:08]} Qxc8 {[%emt 0:00:08]} 31. bxc7 {[%emt 0:00:15]} Qxc7 {[%emt 0:00:05]} 32. Nf5 {[%emt 0:00:34]} Bf8 {[%emt 0:00:08]} 33. Qe3 {[%emt 0:00:20]} Re8 {[%emt 0:03:14]} 34. Qg5 {[%emt 0:00:34]} Re6 {[%emt 0:00:13]} 35. Nh6+ {[%emt 0:00:54]} Kh8 {[%emt 0:00:06]} 36. Ng4 {[%emt 0:00:01]} Rxe1 {[%emt 0:02:57]} 37. Rxe1 {[%emt 0:00:01]} Qa5 {[%emt 0:00:07]} 38. Re2 {[%emt 0:01:27]} Qb4 {[%emt 0:00:58]} 39. Qd2 {[%emt 0:00:41]} Qb1+ {[%emt 0:00:29]} 40. Re1 {[%emt 0:00:02]} Qf5 {[%emt 0:00:09]} 41. Nxf6 {[%emt 0:01:24]} Qxf6 {[%emt 0:00:05]} 42. Qf4 {[%emt 0:00:25]} Qg6 {[%emt 0:00:29]} 43. Qd6 {[%emt 0:00:16]} 1-0

[Event "31st Roquetas de Mar Open 2020"]
[Site "Roquetas de Mar"]
[Date "2020.01.06"]
[Round "7.10"]
[White "Espinosa Aranda, Angel"]
[Black "Rajarishi Karthi"]
[Result "1/2-1/2"]
[ECO "C03"]
[WhiteElo "2504"]
[BlackElo "2103"]
[Annotator "RC"]
[PlyCount "63"]
[EventDate "2020.01.02"]
[EventType "swiss"]
[EventCountry "ESP"]
[SourceTitle "playchess.com"]
[Source "ChessBase"]
[SourceQuality "1"]
[TimeControl "5400+30"]

1. e4 {[%emt 0:00:00]} e6 {[%emt 0:09:43]} 2. d4 {[%emt 0:00:00]} d5 {[%emt 0:00:46]} 3. Nd2 {[%emt 0:00:08]} Be7 {[%emt 0:01:17]} 4. Ngf3 {[%emt 0:00:47]} Nf6 {[%emt 0:00:38]} 5. e5 {[%emt 0:00:20]} Nfd7 {[%emt 0:01:07]} 6. Bd3 {[%emt 0:00:11]} c5 {[%emt 0:01:24]} 7. c3 {[%emt 0:00:05]} b6 {[%emt 0:00:09]} 8. O-O {[%emt 0:00:15]} Ba6 {[%emt 0:00:26]} 9. Ne1 {[%emt 0:00:04]} Bxd3 {[%emt 0:00:23]} 10. Nxd3 {[%emt 0:00:05]} Nc6 {[%emt 0:00:41]} 11. Qg4 {[%emt 0:00:04]} O-O {[%emt 0:00:17]} 12. Nf3 {[%emt 0:00:05]} Kh8 {[%emt 0:00:14]} 13. h4 {[%emt 0:01:17]} Qe8 {[%emt 0:06:09]} 14. Be3 {[%emt 0:02:43]} Rc8 {[%emt 0:03:01]} 15. Nf4 {[%emt 0:13:36]} b5 {[%emt 0:05:02]} 16. a3 {[%emt 0:02:37]} a5 {[%emt 0:00:35]} 17. Ng5 {[%emt 0:11:41]} Bd8 {[%emt 0:07:03]} 18. Qh5 {[%emt 0:18:22]} h6 {[%emt 0:01:22]} 19. Nf3 {[%emt 0:01:36]} Ne7 {[%emt 0:04:06]} 20. Ne2 {[%emt 0:03:39]} Nf5 {[%emt 0:02:16]} 21. Ng3 {[%emt 0:01:52]} Nxg3 {[%emt 0:02:54]} 22. fxg3 {[%emt 0:00:05]} f5 {[%emt 0:00:07]} 23. Qxe8 {[%emt 0:01:46]} Rxe8 {[%emt 0:00:12]} 24. Ne1 {[%emt 0:00:02]} cxd4 {[%emt 0:00:26]} 25. cxd4 {[%emt 0:01:10]} Bb6 {[%emt 0:00:09]} 26. Nf3 {[%emt 0:00:31]} Rc2 {[%emt 0:00:22]} 27. Rf2 {[%emt 0:00:56]} Rec8 {[%emt 0:00:10]} 28. Raf1 {[%emt 0:00:21]} Ba7 {[%emt 0:00:21]} 29. Rxc2 {[%emt 0:00:32]} Rxc2 {[%emt 0:00:06]} 30. Rf2 {[%emt 0:00:01]} Rc7 {[%emt 0:00:35]} 31. Kf1 {[%emt 0:01:59]} Nb6 {[%emt 0:00:19]} 32. Ke1 {[%emt 0:04:20]} 1/2-1/2

[Event "31st Roquetas de Mar Open 2020"]
[Site "Roquetas de Mar"]
[Date "2020.01.06"]
[Round "7.11"]
[White "Manu David Suthandram R"]
[Black "Sadzikowski, Daniel"]
[Result "0-1"]
[ECO "B40"]
[WhiteElo "2362"]
[BlackElo "2501"]
[Annotator "RC"]
[PlyCount "164"]
[EventDate "2020.01.02"]
[EventType "swiss"]
[EventCountry "ESP"]
[SourceTitle "playchess.com"]
[Source "ChessBase"]
[SourceQuality "1"]
[TimeControl "5400+30"]

1. e4 {[%emt 0:07:57]} c5 {[%emt 0:00:06]} 2. Nf3 {[%emt 0:00:16]} e6 {[%emt 0:00:27]} 3. Nc3 {[%emt 0:01:01]} Nc6 {[%emt 0:01:04]} 4. Bb5 {[%emt 0:00:20]} Nge7 {[%emt 0:00:35]} 5. O-O {[%emt 0:00:39]} a6 {[%emt 0:00:32]} 6. Bxc6 {[%emt 0:00:22]} Nxc6 {[%emt 0:00:07]} 7. e5 {[%emt 0:00:05]} d6 {[%emt 0:00:50]} 8. exd6 {[%emt 0:00:11]} Bxd6 {[%emt 0:00:25]} 9. d3 {[%emt 0:00:03]} O-O {[%emt 0:02:20]} 10. Re1 {[%emt 0:00:08]} b6 {[%emt 0:01:51]} 11. Ne4 {[%emt 0:10:26]} Bc7 {[%emt 0:04:06]} 12. Bg5 {[%emt 0:12:07]} f6 {[%emt 0:01:14]} 13. Bh4 {[%emt 0:02:09]} e5 {[%emt 0:03:23]} 14. c3 {[%emt 0:12:34]} Kh8 {[%emt 0:10:12]} 15. Qd2 {[%emt 0:00:26]} Bg4 {[%emt 0:02:13]} 16. Qe3 {[%emt 0:00:36]} Qd7 {[%emt 0:01:27]} 17. h3 {[%emt 0:02:47]} Bh5 {[%emt 0:02:26]} 18. g4 {[%emt 0:02:22]} Bg6 {[%emt 0:01:10]} 19. Bg3 {[%emt 0:04:45]} f5 {[%emt 0:00:07]} 20. gxf5 {[%emt 0:00:10]} Bxf5 {[%emt 0:00:07]} 21. Nh4 {[%emt 0:03:29]} Bxh3 {[%emt 0:21:59]} 22. Ng5 {[%emt 0:00:28]} Bf5 {[%emt 0:00:18]} 23. Rad1 {[%emt 0:00:59]} h6 {[%emt 0:01:36]} 24. Ngf3 {[%emt 0:00:23]} Bh7 {[%emt 0:08:16]} 25. Nxe5 {[%emt 0:03:15]} Bxe5 {[%emt 0:02:01]} 26. Bxe5 {[%emt 0:00:13]} Nxe5 {[%emt 0:00:07]} 27. Qxe5 {[%emt 0:00:16]} Rae8 {[%emt 0:00:10]} 28. Qh5 {[%emt 0:01:08]} Rxe1+ {[%emt 0:00:38]} 29. Rxe1 {[%emt 0:00:06]} Bxd3 {[%emt 0:03:11]} 30. Re3 {[%emt 0:02:21]} Bb1 {[%emt 0:02:00]} 31. Qe2 {[%emt 0:00:15]} Rf6 {[%emt 0:11:49]} 32. b3 {[%emt 0:07:46]} a5 {[%emt 0:00:57]} 33. a3 {[%emt 0:02:43]} Qd5 {[%emt 0:01:24]} 34. c4 {[%emt 0:05:46]} Qg5+ {[%emt 0:01:11]} 35. Ng2 {[%emt 0:00:03]} Bf5 {[%emt 0:02:11]} 36. Qd1 {[%emt 0:00:37]} Re6 {[%emt 0:03:22]} 37. Rg3 {[%emt 0:01:51]} Qe7 {[%emt 0:00:36]} 38. Qh5 Be4 {[%emt 0:03:38]} 39. Nf4 {[%emt 0:05:12]} Re5 {[%emt 0:00:21]} 40. Qe2 {[%emt 0:00:02]} Kh7 {[%emt 0:01:14]} 41. Qg4 {[%emt 0:01:57]} Bf5 {[%emt 0:02:47]} 42. Qh5 {[%emt 0:00:06]} Bc2 {[%emt 0:00:43]} 43. Qh3 {[%emt 0:01:34]} Re1+ {[%emt 0:00:45]} 44. Kh2 {[%emt 0:00:14]} Be4 {[%emt 0:02:20]} 45. Ng2 {[%emt 0:00:54]} Bxg2 {[%emt 0:01:22]} 46. Qf5+ {[%emt 0:00:06]} Kg8 {[%emt 0:00:33]} 47. Kxg2 {[%emt 0:03:38]} Re5 {[%emt 0:01:09]} 48. Qg6 {[%emt 0:00:34]} Re6 {[%emt 0:00:05]} 49. Qg4 {[%emt 0:00:44]} Qf6 {[%emt 0:00:47]} 50. Rf3 {[%emt 0:02:20]} Qg6 {[%emt 0:00:31]} 51. Qxg6 {[%emt 0:00:55]} Rxg6+ {[%emt 0:00:01]} 52. Kf1 {[%emt 0:00:09]} Rd6 {[%emt 0:01:35]} 53. Ke2 {[%emt 0:03:23]} Kh7 {[%emt 0:00:32]} 54. Rf5 {[%emt 0:01:02]} Kg6 {[%emt 0:00:22]} 55. Re5 {[%emt 0:00:06]} Kf6 {[%emt 0:00:10]} 56. Rh5 {[%emt 0:00:03]} Rd4 {[%emt 0:00:32]} 57. a4 {[%emt 0:00:03]} Re4+ {[%emt 0:00:43]} 58. Kf3 {[%emt 0:01:31]} Re1 {[%emt 0:01:26]} 59. Rd5 {[%emt 0:00:03]} Ke6 {[%emt 0:00:46]} 60. Rd3 {[%emt 0:00:02]} h5 {[%emt 0:00:29]} 61. Kg3 {[%emt 0:01:29]} g5 {[%emt 0:00:21]} 62. Rd5 {[%emt 0:01:59]} Re5 {[%emt 0:00:02]} 63. Rd8 {[%emt 0:00:11]} Kf5 {[%emt 0:00:28]} 64. f3 {[%emt 0:01:19]} Re6 {[%emt 0:00:38]} 65. Rd5+ {[%emt 0:00:22]} Kg6 {[%emt 0:00:11]} 66. Rd8 {[%emt 0:00:54]} Re3 {[%emt 0:01:05]} 67. Rd6+ {[%emt 0:00:12]} Kf5 {[%emt 0:00:24]} 68. Rd5+ {[%emt 0:00:13]} Kf6 {[%emt 0:00:09]} 69. Rd6+ {[%emt 0:00:03]} Re6 {[%emt 0:01:09]} 70. Rd5 {[%emt 0:00:31]} Re3 {[%emt 0:00:36]} 71. Rd6+ {[%emt 0:00:06]} Kf7 {[%emt 0:00:05]} 72. Rd5 {[%emt 0:01:56]} g4 {[%emt 0:00:31]} 73. Rxh5 {[%emt 0:00:03]} Rxf3+ {[%emt 0:00:21]} 74. Kxg4 {[%emt 0:00:03]} Rxb3 {[%emt 0:00:06]} 75. Kf5 {[%emt 0:00:03]} Ke7 {[%emt 0:00:18]} 76. Rh7+ {[%emt 0:00:51]} Kd6 {[%emt 0:00:08]} 77. Rh6+ {[%emt 0:01:17]} Kc7 {[%emt 0:00:01]} 78. Rh7+ {[%emt 0:00:22]} Kc6 {[%emt 0:00:04]} 79. Rh6+ {[%emt 0:00:19]} Kb7 {[%emt 0:00:01]} 80. Rh7+ {[%emt 0:00:51]} Ka6 {[%emt 0:00:02]} 81. Ke6 {[%emt 0:00:10]} Rd3 {[%emt 0:00:06]} 82. Rd7 {[%emt 0:00:12]} Rxd7 {[%emt 0:00:52]} 0-1

[Event "31st Roquetas de Mar Open 2020"]
[Site "Roquetas de Mar"]
[Date "2020.01.06"]
[Round "7.12"]
[White "Piceu, Tom"]
[Black "Vazquez Igarza, Renier"]
[Result "0-1"]
[ECO "E10"]
[WhiteElo "2366"]
[BlackElo "2552"]
[Annotator "RC"]
[PlyCount "90"]
[EventDate "2020.01.02"]
[EventType "swiss"]
[EventCountry "ESP"]
[SourceTitle "playchess.com"]
[Source "ChessBase"]
[SourceQuality "1"]
[TimeControl "5400+30"]

1. d4 Nf6 2. c4 e6 3. Nf3 c5 4. e3 a6 5. Nc3 d5 6. dxc5 Bxc5 7. cxd5 exd5 8. Be2 Nc6 9. O-O O-O 10. b3 d4 11. Na4 Ba7 12. Nxd4 Nxd4 13. exd4 Bxd4 14. Bb2 Bxb2 15. Nxb2 Bf5 16. Bf3 Be4 17. Bxe4 Nxe4 18. Re1 Qxd1 19. Raxd1 Nc3 20. Rd7 b5 21. a4 Rfd8 22. Ree7 Ne2+ 23. Kf1 Nd4 24. b4 Nc6 25. Rxf7 Rxd7 26. Rxd7 Nxb4 27. Nd3 Nxd3 28. Rxd3 b4 29. a5 Rb8 30. Rb3 Kf7 31. Ke2 Ke6 32. Kd3 Kd5 33. Kc2 Rc8+ 34. Kb2 Kc4 35. Rg3 g6 36. h4 Rd8 37. Rg4+ Kb5 38. h5 gxh5 39. Rg5+ Ka4 40. f4 Rd2+ 41. Kb1 Rf2 42. f5 h4 43. Rh5 Ka3 44. Rxh4 Rf1+ 45. Kc2 b3+ 0-1

[Event "31st Roquetas de Mar Open 2020"]
[Site "Roquetas de Mar"]
[Date "2020.01.06"]
[Round "7.13"]
[White "Khudov, Oleksandr"]
[Black "Lopez Martinez, Josep Manuel"]
[Result "0-1"]
[ECO "A45"]
[WhiteElo "2234"]
[BlackElo "2545"]
[Annotator "RC"]
[PlyCount "76"]
[EventDate "2020.01.02"]
[EventType "swiss"]
[EventCountry "ESP"]
[SourceTitle "playchess.com"]
[Source "ChessBase"]
[SourceQuality "1"]
[TimeControl "5400+30"]

1. d4 Nf6 2. Bf4 b6 3. e3 Bb7 4. Nf3 d6 5. h3 g6 6. Be2 Bg7 7. O-O O-O 8. c3 e6 9. Nbd2 Nbd7 10. Bh2 Qe7 11. Bd3 e5 12. e4 Nh5 13. Re1 Nf4 14. Bf1 Ne6 15. Nc4 Rad8 16. a4 a5 17. d5 Ng5 18. Nxg5 Qxg5 19. b4 Ra8 20. bxa5 bxa5 21. Rb1 Nc5 22. Nb2 Bc8 23. Nd3 Nxd3 24. Qxd3 f5 25. f3 fxe4 26. fxe4 Bh6 27. c4 Qd2 28. Qa3 Ba6 29. Kh1 Rab8 30. Bg1 Rb4 31. Red1 Qc2 32. Bd3 Qxa4 33. Qc3 Bxc4 34. Ra1 Qb3 35. Qxb3 Bxb3 36. Rf1 Rxf1 37. Rxf1 a4 38. Ba6 Rxe4 0-1